fUST/lending_fUST_20240415
["ID","MTS","AMOUNT","RATE_DAILY","PERIOD"]
[322652739,1713180111693,154.84515485,0.0002,2]
[322652740,1713180113217,688.1990758,0.0002,2]
[322652741,1713180113251,8000.0,0.0002,2]
[322652742,1713180114636,563.61476546,0.0002,2]
[322652743,1713180114746,519.0311523,0.0002,2]
[322652744,1713180115679,1856.05984643,0.0002,2]
[322652745,1713180115926,408.25460692,0.0002,2]
[322652746,1713180116439,326.84815688,0.0002,2]
[322652747,1713180118150,1169.10779713,0.0002,2]
[322652748,1713180118289,467.57706084,0.0002,2]
[322652749,1713180120383,525.49067281,0.00019999,2]
[322652750,1713180120449,937.42642571,0.0002,2]
[322652751,1713180120735,300.0,0.0002,2]
[322652752,1713180121372,470.72269089,0.00019999,2]
[322652753,1713180121416,331.97035701,0.0002,2]
[322652754,1713180121573,300.0,0.0002,2]
[322652755,1713180121632,154.84515485,0.0002,2]
[322652756,1713180122454,156.77861177,0.00019999,2]
[322652757,1713180124840,193.29068397,0.0002,2]
[322652758,1713180126196,225.96730159,0.0002,2]
[322652759,1713180126983,188.75485878,0.0002,2]
[322652760,1713180127056,687.6463722,0.0002,2]
[322652761,1713180127448,22777.83227765,0.0002,2]
[322652762,1713180127667,268.57676262,0.0002,2]
[322652763,1713180128274,882.64152267,0.0002,2]
[322652764,1713180128736,518.9022578,0.0002,2]
[322652765,1713180128828,539.05065121,0.0002,2]
[322652766,1713180129655,7855.0254148,0.0002,2]
[322652767,1713180129686,1856.05984643,0.0002,2]
[322652768,1713180129965,241.97308031,0.0002,2]
[322652769,1713180130557,651.00085877,0.0002,2]
[322652770,1713180131452,204.48071399,0.0002,2]
[322652771,1713180131789,1574.32701702,0.0002,2]
[322652772,1713180132146,609.10516231,0.0002,2]
[322652773,1713180133110,8000.0,0.0002,2]
[322652774,1713180134424,326.84815688,0.0002,2]
[322652775,1713180136382,525.49067281,0.0002,2]
[322652776,1713180138426,156.77861177,0.0002,2]
[322652777,1713180139669,154.84515485,0.0002,2]
[322652778,1713180140138,225.96730159,0.0002,2]
[322652779,1713180140449,936.95563759,0.0002,2]
[322652780,1713180141368,470.72269089,0.0002,2]
[322652781,1713180143425,331.97035701,0.0002,2]
[322652782,1713180143461,14580.46298578,0.0002,2]
[322652783,1713180143661,972.60761032,0.0002,2]
[322652784,1713180144657,211.7214804,0.00019999,2]
[322652785,1713180146845,205.36368055,0.0002,2]
[322652786,1713180147719,5083.93342612,0.0002,2]
[322652787,1713180147748,1574.32701702,0.0002,2]
[322652788,1713180151115,1301.73382986,0.0002,2]
[322652789,1713180152151,609.10516231,0.0002,2]
[322652790,1713180152421,326.84815688,0.0002,2]
[322652791,1713180154424,156.2417627,0.0002,2]
[322652792,1713180155641,188.70341964,0.0002,2]
[322652793,1713180158148,225.96730159,0.0002,2]
[322652794,1713180158412,616.42399922,0.0002,2]
[322652795,1713180160387,522.93289329,0.0002,2]
[322652796,1713180160649,201.87010975,0.0002,2]
[322652797,1713180161701,59063.66666477,0.0002,2]
[322652798,1713180163459,331.97035701,0.0002,2]
[322652799,1713180167755,744.15732922,0.0002,2]
[322652800,1713180173945,309.47390672,0.0002,2]
[322652801,1713180174148,609.10516231,0.0002,2]
[322652802,1713180180772,300.0,0.0002,2]
[322652803,1713180183754,300.0,0.0002,2]
[322652804,1713180189209,2619.93201651,0.0002,2]
[322652805,1713180191751,2619.93201651,0.0002,2]
[322652806,1713180196210,2619.93201651,0.0002,2]
[322652807,1713180236637,225.96730159,0.0002,2]
[322652808,1713180240645,300.0,0.0002,2]
[322652809,1713180241808,300.0,0.0002,2]
[322652810,1713180241960,331.97035701,0.0002,2]
[322652811,1713180252381,154.84515485,0.0002,2]
[322652812,1713180252487,154.84515485,0.0002,2]
[322652813,1713180254005,216.09314923,0.0002,2]
[322652814,1713180256110,163.91782719,0.0002,2]
[322652815,1713180256691,3740.74588478,0.0002,2]
[322652816,1713180257874,154.84515485,0.0002,2]
[322652817,1713180258678,888.05887897,0.0002,2]
[322652818,1713180261624,2940.2321375,0.0002,2]
[322652819,1713180263398,161.77699218,0.0002,2]
[322652820,1713180264094,207.55380091,0.0002,2]
[322652821,1713180264678,609.10516231,0.0002,2]
[322652822,1713180300659,300.0,0.0002,2]
[322652823,1713180305607,24900.0,0.00019528,2]
[322652824,1713180307904,300.0,0.0002,2]
[322652825,1713180324433,331.97035701,0.0002,2]
[322652826,1713180328510,216.09314923,0.0002,2]
[322652827,1713180332890,154.84515485,0.0002,2]
[322652828,1713180340289,609.10516231,0.0002,2]
[322652829,1713180340599,207.55380091,0.0002,2]
[322652830,1713180349196,888.05887897,0.0002,2]
[322652831,1713180349906,161.77699218,0.0002,2]
[322652832,1713180352765,192.6536262,0.000189,2]
[322652833,1713180360704,300.0,0.0002,2]
[322652834,1713180362662,300.0,0.0002,2]
[322652836,1713180403693,609.10516231,0.0002,2]
[322652837,1713180405112,207.55380091,0.0002,2]
[322652838,1713180405395,154.84515485,0.0002,2]
[322652839,1713180419753,171.714728,0.00019249,2]
[322652840,1713180420933,300.0,0.0002,2]
[322652841,1713180422380,300.0,0.0002,2]
[322652842,1713180432110,-491.6626509,0.00020001,2]
[322652843,1713180432132,-273.74352391,0.00020001,2]
[322652844,1713180432155,-156.00464948,0.00020001,2]
[322652845,1713180432177,-155.67229745,0.00020001,2]
[322652846,1713180432198,-157.27056732,0.00020001,2]
[322652847,1713180432219,-10681.81550958,0.00020001,2]
[322652848,1713180476194,609.10516231,0.0002,2]
[322652849,1713180480784,300.0,0.0002,2]
[322652850,1713180482139,300.0,0.0002,2]
[322652851,1713180492771,622.68427412,0.0002,2]
[322652852,1713180494967,331.97035701,0.0002,2]
[322652853,1713180495023,216.09314923,0.0002,2]
[322652854,1713180499921,519.68449309,0.0002,2]
[322652855,1713180518233,288.020442,0.00019523,2]
[322652863,1713180531600,361.42917162,0.0002,2]
[322652864,1713180540280,152.85418973,0.00019938,2]
[322652865,1713180541023,300.0,0.0002,2]
[322652866,1713180541396,300.0,0.0002,2]
[322652867,1713180549304,-38393.11637703,0.00020001,2]
[322652868,1713180552153,-23302.55135781,0.00020001,2]
[322652869,1713180552177,-646.57225968,0.00020138,2]
[322652870,1713180552200,-250.26670652,0.0002016,2]
[322652871,1713180552224,-155.25159508,0.00020176,2]
[322652872,1713180552249,-602.31021043,0.00020176,2]
[322652873,1713180552273,-547.465854,0.00020176,2]
[322652874,1713180552297,-158.41909897,0.00020176,2]
[322652875,1713180552321,-155.80933355,0.00020176,2]
[322652876,1713180552344,-154.87609912,0.00020278,2]
[322652877,1713180552369,-173.78035827,0.00020278,2]
[322652878,1713180552392,-2095.05085537,0.00020282,2]
[322652879,1713180552415,-229.76255499,0.00020283,2]
[322652880,1713180552439,-157.3101062,0.00020283,2]
[322652881,1713180552463,-270.22574436,0.00020283,2]
[322652882,1713180552486,-1309.13435832,0.00020283,2]
[322652883,1713180552510,-186.35351695,0.00020283,2]
[322652884,1713180552533,-408.40248834,0.00020283,2]
[322652885,1713180552557,-1477.66505093,0.00020286,2]
[322652886,1713180552581,-185.63431475,0.00020403,2]
[322652887,1713180552607,-152.85418956,0.00020452,2]
[322652888,1713180552631,-1162.65415112,0.00020899,2]
[322652889,1713180552654,-152.85418956,0.00020966,2]
[322652890,1713180552678,-205.57775263,0.00020996,2]
[322652891,1713180552702,-308.33289206,0.00020996,2]
[322652892,1713180552726,-196.31314447,0.00020996,2]
[322652893,1713180552750,-157.05093756,0.00020996,2]
[322652894,1713180552775,-1237.25009791,0.00020996,2]
[322652895,1713180552798,-302.11148377,0.00020996,2]
[322652896,1713180552819,-217.3587227,0.00020996,2]
[322652897,1713180552838,-281.18193698,0.00020996,2]
[322652898,1713180552859,-192.9346687,0.00020996,2]
[322652899,1713180552878,-331.97035701,0.00020996,2]
[322652900,1713180553082,-344.85171798,0.00020996,2]
[322652901,1713180553108,-250.22467637,0.00020996,2]
[322652902,1713180553128,-239.22933831,0.00020996,2]
[322652903,1713180553147,-216.31923753,0.00020997,2]
[322652904,1713180553167,-1887.8350635,0.00020997,2]
[322652905,1713180553188,-1609.76327338,0.00020998,2]
[322652906,1713180553411,609.10516231,0.0002,2]
[322652908,1713180564191,-1441.06082418,0.00020998,2]
[322652948,1713180632514,-609.10516231,0.00020898,2]
[322652950,1713180632524,-809.33173779,0.00020899,2]
[322652952,1713180632533,-204.6630999,0.00020996,2]
[322653031,1713180638638,-95.3369001,0.00020996,2]
[322653048,1713180638785,-5791.45874465,0.00020997,2]
[322653050,1713180638795,-300.0,0.00020997,2]
[322653052,1713180638805,-14081.50008995,0.00020997,2]
[322653144,1713180643625,-0.01533214,0.00020997,2]
[322653162,1713180654956,178.4357508,0.000189,2]
[322653163,1713180764703,155.3876248,0.00016796,2]
[322653164,1713180766798,652.64738705,0.000189,2]
[322653165,1713180769576,2368.53138688,0.000189,2]
[322653166,1713180780465,1441.06082418,0.000189,2]
[322653168,1713180803208,18759.83273739,0.00019753,2]
[322653169,1713180803236,6140.16726261,0.00019753,2]
[322653170,1713180861410,944.0646584,0.00019449,2]
[322653171,1713180891986,-163.91782719,0.00020108,2]
[322653172,1713180892008,-216.09314923,0.00020108,2]
[322653173,1713180892031,-154.84515485,0.00020109,2]
[322653174,1713180892053,-783.63141595,0.0002011,2]
[322653175,1713180892076,-609.10516231,0.00020111,2]
[322653176,1713180892099,-326.84815688,0.00020111,2]
[322653177,1713180892121,-154.84515485,0.00020112,2]
[322653178,1713180892150,-154.84515485,0.00020112,2]
[322653179,1713180892172,-5791.45874465,0.00020113,2]
[322653182,1713180936354,-1268.0251528,0.00020119,2]
[322653183,1713180936378,-868.79678999,0.00020896,2]
[322653184,1713180936399,-930.12332092,0.000209,2]
[322653185,1713180936420,-582.34398544,0.00020972,2]
[322653186,1713180936442,-247.85126696,0.00020993,2]
[322653187,1713180936462,-202.76280856,0.00020993,2]
[322653188,1713180936483,-154.84515485,0.00020993,2]
[322653189,1713180936503,-309.55136478,0.00020993,2]
[322653190,1713180936523,-163.91782719,0.00020993,2]
[322653191,1713180936545,-309.39658468,0.00020993,2]
[322653192,1713180936566,-191.37518933,0.00020993,2]
[322653193,1713180936587,-216.09314923,0.00020993,2]
[322653194,1713180936608,-2619.93201651,0.00020993,2]
[322653195,1713180949955,213.69413319,0.00020993,2]
[322653196,1713180950286,899.07116112,0.00020993,2]
[322653197,1713180956136,623.86051887,0.000189,2]
[322653198,1713180963942,-300.0,0.00020994,2]
[322653199,1713180963963,-300.0,0.00020994,2]
[322653200,1713180963983,-211.7214804,0.00020995,2]
[322653201,1713180964004,-533.61249856,0.00020995,2]
[322653202,1713180964023,-196.64511873,0.00020995,2]
[322653203,1713180964044,-618.32284686,0.00020995,2]
[322653204,1713180964063,-225.96730159,0.00020995,2]
[322653205,1713180964084,-304.24078065,0.00020995,2]
[322653206,1713180964104,-10930.92652803,0.00020995,2]
[322653213,1713181257537,650.2904674,0.000189,2]
[322653215,1713181331454,24900.0,0.00019995,2]
[322653217,1713181353421,766.7573657,0.00018894,2]
[322653218,1713181361112,461.89542828,0.00020993,4]
[322653219,1713181369332,233.83610178,0.00018894,2]
[322653224,1713181455848,346.916586,0.00019924,2]
[322653225,1713181457813,150.0,0.0002,7]
[322653227,1713181489961,16395.8850277,0.00025,5]
[322653228,1713181536484,163.585749,0.00019614,2]
[322653230,1713181621955,154.82968734,0.00019614,2]
[322653231,1713181641937,158.5236942,0.00019614,2]
[322653232,1713181654104,-154.82968734,0.0002087,2]
[322653233,1713181654123,-525.4553932,0.00020871,2]
[322653236,1713181753102,-470.72269089,0.00020787,2]
[322653237,1713181753124,-563.61476546,0.00020788,2]
[322653238,1713181753146,-984.00405619,0.00020789,2]
[322653239,1713181753167,-465.54275038,0.00020864,2]
[322653240,1713181753187,-1309.46372676,0.00020864,2]
[322653241,1713181753208,-300.0,0.00020864,2]
[322653242,1713181753230,-300.0,0.00020864,2]
[322653243,1713181753251,-157.4992408,0.00020865,2]
[322653244,1713181753271,-1487.92182193,0.00020865,2]
[322653245,1713181753294,-181.3262876,0.00020865,2]
[322653246,1713181753316,-236.30551311,0.00020866,2]
[322653247,1713181753337,-2096.03028856,0.00020866,2]
[322653248,1713181753358,-2619.93201651,0.00020878,2]
[322653249,1713181753381,-72377.48324442,0.00020885,2]
[322653250,1713181753403,-2940.93129684,0.00020886,2]
[322653252,1713181753425,-659.42660998,0.00020886,2]
[322653253,1713181753445,-156.40394488,0.00020887,2]
[322653254,1713181753466,-530.28508054,0.00020889,2]
[322653255,1713181753488,-21865.65720458,0.00020889,2]
[322653256,1713181753513,-154.89255992,0.00020896,2]
[322653257,1713181753534,-744.09865672,0.00020897,2]
[322653258,1713181753556,-509.36221554,0.00020972,2]
[322653259,1713181753578,-194.0002741,0.00020993,2]
[322653260,1713181753600,-155.38703023,0.00020993,2]
[322653261,1713181753621,-211.05247626,0.00020993,2]
[322653262,1713181753642,-485.05417196,0.00020993,2]
[322653263,1713181753664,-248.2779575,0.00020993,2]
[322653264,1713181753685,-164.02197287,0.00020993,2]
[322653265,1713181753707,-439.14339695,0.00020993,2]
[322653266,1713181753728,-276.9632904,0.00020993,2]
[322653267,1713181753750,-605.63049082,0.00020993,2]
[322653268,1713181753770,-229.26351186,0.00020993,2]
[322653269,1713181753792,-3588.6114717,0.00020993,2]
[322653270,1713181753813,-303.60290042,0.00020993,2]
[322653271,1713181753835,-173.34237154,0.00020993,2]
[322653272,1713181753857,-1199.99210518,0.00020995,2]
[322653273,1713181753880,-54290.00908766,0.00020996,2]
[322653274,1713181753901,-2565.56553566,0.00020997,2]
[322653275,1713181753922,-4764.17078514,0.00021,2]
[322653317,1713181832748,-470.72269089,0.00020765,2]
[322653319,1713181832759,-437.7939115,0.00020766,2]
[322653321,1713181832769,-300.0,0.00020785,2]
[322653323,1713181832779,-300.0,0.00020785,2]
[322653325,1713181832788,-7332.11818842,0.00020785,2]
[322653364,1713181833435,-65045.365056,0.00020785,2]
[322653366,1713181833444,-18585.69322686,0.00020786,2]
[322653368,1713181833454,-5987.90133289,0.00020786,2]
[322653483,1713181838657,-930.13953468,0.00020786,2]
[322653484,1713181838666,-720.13324694,0.00020883,2]
[322653485,1713181838676,-159.94654956,0.00020999,2]
[322653486,1713181838685,-257.85648875,0.00021,2]
[322653487,1713181838694,-154.89255992,0.00021238,2]
[322653488,1713181838703,-154.89255992,0.00021581,2]
[322653489,1713181838712,-154.89255992,0.00021923,2]
[322653490,1713181838722,-158.76974363,0.00022264,2]
[322653491,1713181838732,-154.89255992,0.00022265,2]
[322653492,1713181838741,-154.89255992,0.00022608,2]
[322653493,1713181838750,-420.0,0.00022614,2]
[322653494,1713181838759,-420.0,0.00022864,2]
[322653495,1713181838767,-433.52697826,0.000229,2]
[322653496,1713181838777,-154.89255992,0.0002295,2]
[322653497,1713181838786,-24900.0,0.00023277,2]
[322653498,1713181838795,-243.11397292,0.00023291,2]
[322653499,1713181838804,-154.89255992,0.00023292,2]
[322653500,1713181838813,-984.00405616,0.00023519,2]
[322653501,1713181838822,-154.89255992,0.00023635,2]
[322653502,1713181838832,-168.660523,0.00023656,2]
[322653503,1713181838841,-154.89255992,0.00023977,2]
[322653504,1713181838855,-154.89255992,0.00024319,2]
[322653505,1713181838864,-744.0986567,0.00024348,2]
[322653506,1713181838873,-587.0,0.00024605,2]
[322653507,1713181838883,-380.0,0.00024658,2]
[322653508,1713181838893,-200.0,0.00024658,2]
[322653509,1713181838903,-154.89255992,0.00024661,2]
[322653510,1713181838913,-1436.93772169,0.00024997,2]
[322653511,1713181838923,-156.98200501,0.00025,2]
[322653512,1713181838932,-599.93513208,0.00025,2]
[322653513,1713181838941,-154.89255992,0.00025004,2]
[322653514,1713181838950,-587.0,0.0002515,2]
[322653515,1713181838960,-154.89255992,0.00025346,2]
[322653516,1713181838970,-154.89255992,0.00025688,2]
[322653517,1713181838980,-154.89255992,0.00026031,2]
[322653518,1713181838990,-984.00405616,0.00026249,3]
[322653519,1713181838999,-154.89255992,0.00026373,2]
[322653520,1713181839009,-154.89255992,0.00026715,2]
[322653521,1713181839019,-823.0,0.00026771,2]
[322653522,1713181839030,-2619.93201651,0.00026999,2]
[322653523,1713181839040,-154.81422293,0.00027,2]
[322653524,1713181839051,-154.89255992,0.00027058,2]
[322653525,1713181839061,-175.405897,0.00027397,2]
[322653526,1713181839071,-205.881618,0.00027397,2]
[322653527,1713181839080,-367.356895,0.00027397,2]
[322653528,1713181839090,-158.878443,0.00027397,2]
[322653529,1713181839100,-166.666666,0.00027397,2]
[322653530,1713181839110,-1000.0,0.00027397,2]
[322653531,1713181839121,-164.963686,0.00027397,2]
[322653532,1713181839131,-758.18918153,0.000274,2]
[322653533,1713181839142,-973.82372611,0.000274,2]
[322653534,1713181839152,-154.89255992,0.000274,2]
[322653535,1713181839162,-297.40294908,0.00027497,2]
[322653536,1713181839173,-243.62457067,0.00027497,2]
[322653537,1713181839184,-193.64115742,0.00027497,2]
[322653538,1713181839194,-309.50480476,0.00027498,2]
[322653539,1713181839204,-504.76178305,0.00027498,2]
[322653540,1713181839214,-309.65949829,0.00027498,2]
[322653541,1713181839224,-186.3096903,0.00027498,2]
[322653542,1713181839234,-953.73793423,0.00027498,2]
[322653543,1713181839243,-8921.38168489,0.00027498,2]
[322653544,1713181839253,-365.12059882,0.00027498,2]
[322653545,1713181839263,-157.15623058,0.00027499,2]
[322653546,1713181839272,-449.89252801,0.00027499,2]
[322653547,1713181839283,-37607.76109813,0.000275,2]
[322653548,1713181839293,-823.0,0.00027665,2]
[322653549,1713181839303,-744.0986567,0.00027799,2]
[322653550,1713181839313,-433.52697826,0.000279,2]
[322653551,1713181839324,-150.0,0.00027999,2]
[322653552,1713181839334,-105691.8901607,0.00028,5]
[322653553,1713181839343,-74681.2074685,0.00028,14]
[322653554,1713181839354,-151.0,0.00028,2]
[322653555,1713181839363,-151.0,0.00028,2]
[322653556,1713181839373,-151.0,0.00028,2]
[322653557,1713181839383,-151.0,0.00028,2]
[322653558,1713181839393,-151.0,0.00028,2]
[322653559,1713181839407,-151.0,0.00028,2]
[322653560,1713181839418,-223.444171,0.00028,2]
[322653561,1713181839428,-151.0,0.00028,2]
[322653562,1713181839438,-151.0,0.00028,2]
[322653563,1713181839449,-151.0,0.00028,2]
[322653564,1713181839459,-151.0,0.00028,2]
[322653565,1713181839469,-371.672002,0.00028,2]
[322653566,1713181839479,-371.672002,0.00028,2]
[322653567,1713181839490,-151.0,0.00028,2]
[322653568,1713181839501,-151.0,0.00028,2]
[322653569,1713181839510,-426.432367,0.00028,2]
[322653570,1713181839520,-166.666666,0.00028038,2]
[322653571,1713181839530,-166.666666,0.00028679,2]
[322653572,1713181839540,-984.00405616,0.00028979,4]
[322653573,1713181839550,-150.0,0.00028999,2]
[322653574,1713181839560,-1246.21811805,0.00029,2]
[322653575,1713181839571,-1152.0,0.00029127,2]
[322653576,1713181839581,-166.666666,0.00029321,2]
[322653577,1713181839591,-157.63466425,0.00029699,2]
[322653578,1713181839602,-1000.0,0.000298,2]
[322653579,1713181839612,-10000.0,0.000298,3]
[322653580,1713181839622,-346.916586,0.00029886,2]
[322653581,1713181839633,-166.666666,0.00029962,2]
[322653582,1713181839643,-23839.32857401,0.00029987,2]
[322653583,1713181839653,-227.225342,0.00029987,2]
[322653584,1713181839663,-151.0,0.00029987,2]
[322653585,1713181839674,-151.0,0.00029987,2]
[322653586,1713181839683,-151.0,0.00029987,2]
[322653587,1713181839694,-151.0,0.00029987,2]
[322653588,1713181839705,-301.72137,0.00029987,2]
[322653589,1713181839715,-151.0,0.00029987,2]
[322653590,1713181839726,-151.0,0.00029987,2]
[322653591,1713181839736,-151.0,0.00029987,2]
[322653592,1713181839746,-151.0,0.00029987,2]
[322653593,1713181839756,-763.3448,0.00029987,2]
[322653594,1713181839885,-151.0,0.00029987,2]
[322653595,1713181839895,-763.3448,0.00029987,2]
[322653596,1713181839905,-151.0,0.00029987,2]
[322653597,1713181839914,-151.0,0.00029987,2]
[322653598,1713181839922,-195.196574,0.00029987,2]
[322653599,1713181839931,-195.196574,0.00029987,2]
[322653600,1713181839940,-151.0,0.00029987,2]
[322653601,1713181839949,-2797.948285,0.00029987,2]
[322653602,1713181839959,-2797.948285,0.00029987,2]
[322653603,1713181839968,-151.0,0.00029987,2]
[322653604,1713181839977,-151.0,0.00029987,2]
[322653605,1713181839985,-151.0,0.00029987,2]
[322653606,1713181839994,-155.754708,0.00029987,2]
[322653607,1713181840003,-151.0,0.00029987,2]
[322653608,1713181840012,-318.580618,0.00029987,2]
[322653609,1713181840021,-318.580618,0.00029987,2]
[322653610,1713181840031,-151.0,0.00029987,2]
[322653611,1713181840041,-151.0,0.00029987,2]
[322653612,1713181840050,-151.0,0.00029987,2]
[322653613,1713181840059,-151.0,0.00029987,2]
[322653614,1713181840068,-151.0,0.00029987,2]
[322653615,1713181840077,-371.672002,0.00029987,2]
[322653616,1713181840087,-371.672002,0.00029987,2]
[322653617,1713181840096,-151.0,0.00029987,2]
[322653618,1713181840105,-426.432367,0.00029987,2]
[322653619,1713181840114,-151.0,0.00029987,2]
[322653620,1713181840123,-154.87609912,0.00029996,2]
[322653621,1713181840132,-193.27870216,0.00029996,2]
[322653622,1713181840141,-202.93878947,0.00029996,2]
[322653623,1713181840150,-1670.58694572,0.00029996,2]
[322653624,1713181840159,-160.7812492,0.00029996,2]
[322653625,1713181840168,-300.53023385,0.00029996,2]
[322653626,1713181840177,-160.49598166,0.00029996,2]
[322653627,1713181840186,-270.33713602,0.00029996,2]
[322653628,1713181840195,-3293.28998897,0.00029996,2]
[322653629,1713181840204,-155.16279259,0.00029996,2]
[322653630,1713181840213,-171.82632206,0.00029996,2]
[322653631,1713181840223,-301.21875033,0.00029996,2]
[322653632,1713181840232,-155.42908659,0.00029996,2]
[322653634,1713181840241,-155.14064967,0.00029996,2]
[322653636,1713181840250,-167.25144684,0.00029996,2]
[322653637,1713181840258,-799.83143609,0.0003,2]
[322653638,1713181840267,-304.23825315,0.0003,2]
[322653639,1713181840276,-277.49835565,0.0003,2]
[322653640,1713181840285,-154.0,0.0003,2]
[322653641,1713181840295,-191.0,0.0003,2]
[322653642,1713181840304,-500.0,0.00030136,2]
[322653643,1713181840313,-154.0,0.00030411,2]
[322653644,1713181840322,-1152.0,0.00030431,2]
[322653645,1713181840332,-505.74,0.00030587,2]
[322653646,1713181840343,-166.666666,0.00030603,2]
[322653647,1713181840355,-1000.0,0.000308,4]
[322653648,1713181840364,-1000.0,0.000308,3]
[322653649,1713181840374,-744.0986567,0.00031249,2]
[322653650,1713181840384,-154.0,0.00031644,2]
[322653651,1713181840394,-621.46746281,0.00031672,2]
[322653652,1713181840407,-1613.0,0.0003169,2]
[322653653,1713181840420,-984.00405616,0.0003171,5]
[322653654,1713181840431,-2000.0,0.000318,5]
[322653655,1713181840442,-2000.0,0.000318,7]
[322653656,1713181840451,-2000.0,0.000318,10]
[322653657,1713181840461,-151.0,0.000318,2]
[322653658,1713181840470,-151.0,0.000318,2]
[322653659,1713181840481,-151.0,0.000318,2]
[322653660,1713181840492,-151.0,0.000318,2]
[322653661,1713181840502,-763.3448,0.000318,2]
[322653662,1713181840512,-151.0,0.000318,2]
[322653663,1713181840521,-763.3448,0.000318,2]
[322653664,1713181840531,-155.681918,0.000318,2]
[322653665,1713181840541,-151.0,0.000318,2]
[322653666,1713181840550,-195.196574,0.000318,2]
[322653667,1713181840559,-195.196574,0.000318,2]
[322653668,1713181840569,-151.0,0.000318,2]
[322653669,1713181840578,-2797.948285,0.000318,2]
[322653670,1713181840588,-2797.948285,0.000318,2]
[322653671,1713181840599,-151.265451,0.000318,2]
[322653672,1713181840608,-254.280758,0.000318,2]
[322653673,1713181840617,-151.0,0.000318,2]
[322653674,1713181840626,-318.580618,0.000318,2]
[322653675,1713181840636,-151.0,0.000318,2]
[322653676,1713181840645,-318.580618,0.000318,2]
[322653677,1713181840654,-246.629288,0.000318,2]
[322653678,1713181840663,-151.0,0.000318,2]
[322653679,1713181840672,-151.0,0.000318,2]
[322653680,1713181840682,-153.250409,0.000318,2]
[322653681,1713181840690,-151.0,0.000318,2]
[322653682,1713181840700,-371.672002,0.000318,2]
[322653683,1713181840709,-371.672002,0.000318,2]
[322653684,1713181840718,-151.0,0.000318,2]
[322653685,1713181840727,-426.432367,0.000318,2]
[322653686,1713181840737,-151.0,0.000318,2]
[322653687,1713181840746,-224.746175,0.00031975,2]
[322653688,1713181840755,-151.0,0.00031975,2]
[322653689,1713181840765,-191.09643603,0.00032,4]
[322653690,1713181840775,-202.8732917,0.00032603,2]
[322653692,1713181840785,-151.0,0.00032877,2]
[322653693,1713181840795,-151.0,0.00032877,2]
[322653694,1713181840805,-151.0,0.00032877,2]
[322653695,1713181840814,-151.0,0.00032877,2]
[322653696,1713181840823,-151.0,0.00032877,2]
[322653697,1713181840834,-433.52697826,0.000329,2]
[322653698,1713181840843,-151.0,0.00033,2]
[322653699,1713181840855,-191.0,0.00033,2]
[322653700,1713181840865,-191.0,0.00033,2]
[322653701,1713181840876,-205.881618,0.00033165,2]
[322653702,1713181840885,-367.356895,0.00033165,2]
[322653703,1713181840896,-158.0,0.00033226,2]
[322653704,1713181840906,-620.07337314,0.00033255,2]
[322653705,1713181840916,-154.2863713,0.00033288,2]
[322653707,1713181840926,-159.1150603,0.00033288,2]
[322653709,1713181840937,-154.1475851,0.00033288,2]
[322653710,1713181840947,-153.0,0.00033288,2]
[322653711,1713181840956,-153.0,0.00033288,2]
[322653712,1713181840966,-306.0,0.00033288,2]
[322653713,1713181840975,-153.0,0.00033288,2]
[322653714,1713181840986,-153.0,0.00033288,2]
[322653715,1713181840996,-434.041977,0.00033288,2]
[322653716,1713181841006,-1613.0,0.00033474,2]